fUSD/lending_fUSD_20250708
["ID","MTS","AMOUNT","RATE_DAILY","PERIOD"]
[370344225,1751971841898,-460.0,0.00027397,3]
[370344227,1751971841907,-460.0,0.00027397,3]
[370344229,1751971841917,-460.0,0.00027397,3]
[370344231,1751971841926,-460.0,0.00027397,3]
[370344233,1751971841937,-460.0,0.00027397,3]
[370344235,1751971841946,-460.0,0.00027397,3]
[370344237,1751971841955,-460.0,0.00027397,3]
[370344239,1751971841964,-460.0,0.00027397,3]
[370344241,1751971841974,-460.0,0.00027397,3]
[370344243,1751971841983,-460.0,0.00027397,3]
[370344245,1751971841993,-1034.06,0.00027397,3]
[370344247,1751971842003,-490.95600379,0.00027397,3]
[370344249,1751971842012,-460.0,0.00027397,3]
[370344251,1751971842021,-460.0,0.00027397,3]
[370344253,1751971842031,-460.0,0.00027397,3]
[370344255,1751971842044,-460.0,0.00027397,3]
[370344257,1751971842054,-740.43,0.00027397,3]
[370344259,1751971842063,-460.0,0.00027397,3]
[370344261,1751971842073,-857.09,0.00027397,3]
[370344263,1751971842083,-508.72,0.00027397,3]
[370344265,1751971842092,-2856.99,0.00027397,3]
[370344267,1751971842101,-460.0,0.00027397,3]
[370344269,1751971842111,-460.0,0.00027397,3]
[370344271,1751971842121,-460.0,0.00027397,3]
[370344273,1751971842130,-911.23,0.00027397,3]
[370344275,1751971842140,-460.0,0.00027397,3]
[370344277,1751971842149,-460.0,0.00027397,3]
[370344279,1751971842158,-460.0,0.00027397,3]
[370344281,1751971842168,-460.0,0.00027397,3]
[370344283,1751971842177,-830.44,0.00027397,3]
[370344285,1751971842188,-460.0,0.00027397,3]
[370344287,1751971842197,-460.0,0.00027397,3]
[370344289,1751971842206,-460.0,0.00027397,3]
[370344291,1751971842216,-460.0,0.00027397,3]
[370344293,1751971842226,-460.0,0.00027397,3]
[370344295,1751971842235,-791.17,0.00027397,3]
[370344297,1751971842244,-331.60444597,0.00027397,3]
[370344299,1751971842253,-460.0,0.00027397,3]
[370344301,1751971842262,-460.0,0.00027397,3]
[370344303,1751971842272,-460.0,0.00027397,3]
[370344305,1751971842281,-919.1,0.00027397,3]
[370344307,1751971842290,-460.0,0.00027397,3]
[370344309,1751971842299,-460.0,0.00027397,3]
[370344311,1751971842308,-460.0,0.00027397,3]
[370344313,1751971842318,-940.85,0.00027397,3]
[370344315,1751971842327,-3136.7,0.00027397,3]
[370344317,1751971842339,-460.0,0.00027397,3]
[370344319,1751971842349,-928.26,0.00027397,3]
[370344321,1751971842358,-460.0,0.00027397,3]
[370344323,1751971842368,-3629.59,0.00027397,3]
[370344325,1751971842378,-460.0,0.00027397,3]
[370344328,1751971842387,-460.0,0.00027397,3]
[370344330,1751971842397,-1152.37,0.00027397,3]
[370344332,1751971842407,-460.0,0.00027397,3]
[370344335,1751971842416,-460.0,0.00027397,3]
[370344337,1751971842426,-460.0,0.00027397,3]
[370344340,1751971842435,-460.0,0.00027397,3]
[370344343,1751971842445,-791.94,0.00027397,3]
[370344346,1751971842454,-1214.43,0.00027397,3]
[370344348,1751971842464,-497.25454641,0.00027397,3]
[370344351,1751971842473,-460.0,0.00027397,3]
[370344354,1751971842483,-460.0,0.00027397,3]
[370344356,1751971842493,-460.0,0.00027397,3]
[370344358,1751971842502,-460.0,0.00027397,3]
[370344360,1751971842511,-460.0,0.00027397,3]
[370344362,1751971842521,-460.75980795,0.00027397,3]
[370344364,1751971842530,-614.23,0.00027397,3]
[370344366,1751971842539,-460.0,0.00027397,3]
[370344368,1751971842548,-460.0,0.00027397,3]
[370344370,1751971842558,-2965.79,0.00027397,3]
[370344373,1751971842567,-460.0,0.00027397,3]
[370344376,1751971842578,-460.0,0.00027397,3]
[370344379,1751971842587,-460.0,0.00027397,3]
[370344382,1751971842596,-3295.03,0.00027397,3]
[370344384,1751971842605,-460.0,0.00027397,3]
[370344387,1751971842614,-844.91,0.00027397,3]
[370344389,1751971842624,-460.0,0.00027397,3]
[370344391,1751971842633,-460.0,0.00027397,3]
[370344393,1751971842642,-460.0,0.00027397,3]
[370344395,1751971842652,-991.3,0.00027397,3]
[370344397,1751971842662,-545.64,0.00027397,3]
[370344419,1751971842892,-460.0,0.00027397,3]
[370344420,1751971842902,-581.85,0.00027397,3]
[370344421,1751971842912,-460.0,0.00027397,3]
[370344422,1751971842921,-676.33,0.00027397,3]
[370344423,1751971842931,-460.0,0.00027397,3]
[370344424,1751971842940,-1387.06,0.00027397,3]
[370344425,1751971842949,-460.0,0.00027397,3]
[370344426,1751971842958,-460.0,0.00027397,3]
[370344427,1751971842968,-460.0,0.00027397,3]
[370344428,1751971842977,-829.95,0.00027397,3]
[370344429,1751971842987,-460.0,0.00027397,3]
[370344430,1751971842996,-155.12,0.00027397,2]
[370344431,1751971843007,-837.09214054,0.000274,3]
[370344433,1751971843017,-3529.08329453,0.00027401,2]
[370344435,1751971843026,-14408.3967205,0.00027489,2]
[370344437,1751971843037,-13316.9960935,0.00027489,2]
[370344439,1751971843048,-14408.3967205,0.0002749,2]
[370344441,1751971843057,-13316.9960935,0.0002749,2]
[370344443,1751971843066,-600.0,0.00027497,2]
[370344445,1751971843075,-460.0,0.00027499,3]
[370344447,1751971843084,-460.0,0.00027499,3]
[370344449,1751971843095,-460.0,0.00027499,3]
[370344451,1751971843104,-793.65,0.00027499,3]
[370344453,1751971843113,-1890.12,0.00027499,3]
[370344457,1751971843123,-460.0,0.00027499,3]
[370344460,1751971843133,-460.0,0.00027499,3]
[370344462,1751971843143,-902.06,0.00027499,3]
[370344464,1751971843152,-468.69,0.00027499,3]
[370344466,1751971843162,-460.0,0.00027499,3]
[370344468,1751971843171,-465.78,0.00027499,3]
[370344470,1751971843181,-798.92,0.00027499,3]
[370344472,1751971843190,-460.0,0.00027499,3]
[370344474,1751971843200,-1320.27,0.00027499,3]
[370344476,1751971843210,-720.94,0.00027499,3]
[370344478,1751971843219,-564.59,0.00027499,3]
[370344480,1751971843228,-460.0,0.00027499,3]
[370344482,1751971843237,-874.26,0.00027499,3]
[370344484,1751971843246,-607.42,0.00027499,3]
[370344486,1751971843255,-966.68,0.00027499,3]
[370344488,1751971843264,-460.0,0.00027499,3]
[370344490,1751971843275,-1504.62,0.00027499,3]
[370344492,1751971843284,-744.47,0.00027499,3]
[370344493,1751971843293,-588.68,0.00027499,3]
[370344495,1751971843302,-1642.85,0.00027499,3]
[370344497,1751971843311,-1324.95,0.00027499,3]
[370344499,1751971843321,-517.48,0.00027499,3]
[370344501,1751971843330,-641.15,0.00027499,3]
[370344503,1751971843340,-460.0,0.00027499,3]
[370344505,1751971843349,-605.83,0.00027499,3]
[370344507,1751971843358,-667.95,0.00027499,3]
[370344509,1751971843367,-460.0,0.00027499,3]
[370344511,1751971843376,-460.0,0.00027499,3]
[370344513,1751971843385,-460.0,0.00027499,3]
[370344515,1751971843394,-461.56833412,0.00027499,3]
[370344517,1751971843403,-460.0,0.00027499,3]
[370344519,1751971843413,-460.0,0.00027499,3]
[370344521,1751971843422,-460.0,0.00027499,3]
[370344523,1751971843432,-460.0,0.00027499,3]
[370344525,1751971843441,-530.2,0.00027499,3]
[370344527,1751971843450,-2040.76,0.00027499,3]
[370344529,1751971843459,-961.53,0.00027499,3]
[370344531,1751971843468,-1048.58,0.00027499,3]
[370344533,1751971843478,-460.0,0.00027499,3]
[370344535,1751971843487,-696.69,0.00027499,3]
[370344537,1751971843496,-460.0,0.00027499,3]
[370344539,1751971843505,-648.91,0.00027499,3]
[370344541,1751971843514,-1401.64,0.00027499,3]
[370344542,1751971843523,-460.0,0.00027499,3]
[370344544,1751971843532,-489.46,0.00027499,3]
[370344546,1751971843541,-1245.88,0.00027499,3]
[370344548,1751971843550,-942.64,0.00027499,3]
[370344550,1751971843559,-1314.95,0.00027499,3]
[370344552,1751971843568,-1190.31,0.00027499,3]
[370344554,1751971843578,-474.29,0.00027499,3]
[370344556,1751971843588,-564.52,0.00027499,3]
[370344557,1751971843596,-460.0,0.00027499,3]
[370344558,1751971843605,-460.0,0.00027499,3]
[370344559,1751971843614,-530.33,0.00027499,3]
[370344560,1751971843624,-838.73,0.00027499,3]
[370344561,1751971843633,-21339.0,0.000275,2]
[370344562,1751971843642,-4000.0,0.000275,2]
[370344563,1751971843652,-700.0,0.000275,10]
[370344564,1751971843661,-198.0,0.00027522,2]
[370344565,1751971843670,-500.0,0.00027526,3]
[370344566,1751971843679,-4371.70125413,0.00027538,2]
[370344567,1751971843689,-191.39013786,0.00027549,2]
[370344568,1751971843698,-814.45267287,0.00027555,17]
[370344569,1751971843707,-495.33028545,0.00027597,2]
[370344570,1751971843716,-1000.0,0.000276,10]
[370344571,1751971843726,-13316.9960935,0.00027646,2]
[370344572,1751971843735,-14408.3967205,0.00027651,2]
[370344573,1751971843744,-3529.08329453,0.00027656,2]
[370344574,1751971843753,-862.57606904,0.00027658,2]
[370344575,1751971843762,-43225.1901616,0.00027661,2]
[370344576,1751971843772,-79901.9765609,0.00027661,2]
[370344577,1751971843781,-460.0,0.00027671,3]
[370344578,1751971843791,-462.54545206,0.00027671,3]
[370344579,1751971843801,-531.47,0.00027671,3]
[370344580,1751971843810,-460.0,0.00027671,3]
[370344581,1751971843820,-460.0,0.00027671,3]
[370344582,1751971843829,-1570.8,0.00027671,3]
[370344583,1751971843839,-251.64834193,0.00027671,3]
[370344584,1751971843848,-460.0,0.00027671,3]
[370344585,1751971843858,-460.0,0.00027671,3]
[370344586,1751971843868,-460.0,0.00027671,3]
[370344587,1751971843878,-460.0,0.00027671,3]
[370344588,1751971843887,-460.0,0.00027671,3]
[370344589,1751971843896,-460.0,0.00027671,3]
[370344590,1751971843906,-460.0,0.00027671,3]
[370344591,1751971843916,-460.0,0.00027671,3]
[370344592,1751971843925,-460.0,0.00027671,3]
[370344593,1751971843935,-460.0,0.00027671,3]
[370344594,1751971843944,-347.70895056,0.00027671,3]
[370344595,1751971843954,-460.0,0.00027671,3]
[370344596,1751971843964,-460.0,0.00027671,3]
[370344597,1751971843974,-476.55,0.00027671,3]
[370344598,1751971843983,-460.0,0.00027671,3]
[370344599,1751971843993,-525.78717613,0.00027671,3]
[370344600,1751971844003,-184.88777563,0.00027671,3]
[370344601,1751971844012,-490.0,0.00027671,3]
[370344602,1751971844023,-460.0,0.00027671,3]
[370344604,1751971844035,-1267.14,0.00027671,3]
[370344606,1751971844047,-460.0,0.00027671,3]
[370344608,1751971844056,-460.0,0.00027671,3]
[370344610,1751971844066,-460.0,0.00027671,3]
[370344612,1751971844076,-605.34,0.00027671,3]
[370344614,1751971844086,-550.0,0.00027671,3]
[370344616,1751971844096,-778.66,0.00027671,3]
[370344618,1751971844105,-220.33607351,0.00027671,3]
[370344620,1751971844117,-1480.71,0.00027671,3]
[370344622,1751971844128,-460.0,0.00027671,3]
[370344624,1751971844138,-460.0,0.00027671,3]
[370344626,1751971844148,-460.0,0.00027671,3]
[370344628,1751971844157,-1000.0,0.00027671,3]
[370344630,1751971844166,-460.0,0.00027671,3]
[370344632,1751971844176,-586.64,0.00027671,3]
[370344634,1751971844186,-496.30944668,0.00027671,3]
[370344636,1751971844195,-460.0,0.00027671,3]
[370344639,1751971844206,-1111.31,0.00027671,3]
[370344641,1751971844215,-970.947582,0.00027671,3]
[370344642,1751971844224,-153.090645,0.00027671,3]
[370344644,1751971844234,-1053.985662,0.00027671,3]
[370344646,1751971844243,-1100.951878,0.00027671,3]
[370344648,1751971844253,-460.0,0.00027671,3]
[370344650,1751971844262,-621.52,0.00027671,3]
[370344652,1751971844271,-460.0,0.00027671,3]
[370344654,1751971844281,-567.67,0.00027671,3]
[370344656,1751971844289,-460.0,0.00027671,3]
[370344657,1751971844298,-460.0,0.00027671,3]
[370344658,1751971844308,-460.0,0.00027671,3]
[370344659,1751971844317,-544.91,0.00027671,3]
[370344660,1751971844326,-746.18,0.00027671,3]
[370344661,1751971844335,-491.63820929,0.00027671,3]
[370344662,1751971844346,-460.0,0.00027671,3]
[370344663,1751971844355,-460.0,0.00027671,3]
[370344664,1751971844365,-460.0,0.00027671,3]
[370344665,1751971844375,-460.0,0.00027671,3]
[370344666,1751971844384,-460.0,0.00027671,3]
[370344667,1751971844394,-594.21,0.00027671,3]
[370344668,1751971844404,-490.0,0.00027671,3]
[370344669,1751971844413,-460.0,0.00027671,3]
[370344670,1751971844423,-460.0,0.00027671,3]
[370344671,1751971844432,-460.0,0.00027671,3]
[370344672,1751971844441,-672.43,0.00027671,3]
[370344673,1751971844451,-594.99,0.00027671,3]
[370344674,1751971844460,-460.0,0.00027671,3]
[370344675,1751971844469,-460.0,0.00027671,3]
[370344676,1751971844479,-460.0,0.00027671,3]
[370344677,1751971844488,-460.0,0.00027671,3]
[370344678,1751971844498,-1967.14,0.00027671,3]
[370344679,1751971844508,-460.0,0.00027671,3]
[370344680,1751971844517,-460.0,0.00027671,3]
[370344681,1751971844527,-523.06,0.00027671,3]
[370344682,1751971844536,-460.0,0.00027671,3]
[370344683,1751971844546,-460.0,0.00027671,3]
[370344684,1751971844555,-460.0,0.00027671,3]
[370344685,1751971844564,-460.0,0.00027671,3]
[370344686,1751971844573,-529.46,0.00027671,3]
[370344687,1751971844582,-529.46,0.00027671,3]
[370344688,1751971844591,-460.0,0.00027671,3]
[370344689,1751971844600,-460.0,0.00027671,3]
[370344690,1751971844609,-460.0,0.00027671,3]
[370344691,1751971844618,-460.0,0.00027671,3]
[370344692,1751971844627,-460.0,0.00027671,3]
[370344693,1751971844637,-491.17,0.00027671,3]
[370344694,1751971844646,-470.7,0.00027671,3]
[370344695,1751971844655,-1261.77,0.00027671,3]
[370344696,1751971844664,-415.22176664,0.00027671,3]
[370344697,1751971844674,-460.0,0.00027671,3]
[370344699,1751971844683,-733.64,0.00027671,3]
[370344701,1751971844693,-460.0,0.00027671,3]
[370344703,1751971844702,-703.07,0.00027671,3]
[370344705,1751971844711,-460.0,0.00027671,3]
[370344707,1751971844720,-460.0,0.00027671,3]
[370344708,1751971844729,-460.0,0.00027671,3]
[370344710,1751971844738,-460.0,0.00027671,3]
[370344712,1751971844748,-460.0,0.00027671,3]
[370344714,1751971844757,-460.0,0.00027671,3]
[370344716,1751971844766,-460.0,0.00027671,3]
[370344718,1751971844775,-547.21,0.00027671,3]
[370344720,1751971844785,-460.0,0.00027671,3]
[370344722,1751971844794,-460.0,0.00027671,3]
[370344724,1751971844803,-460.0,0.00027671,3]
[370344726,1751971844812,-460.0,0.00027671,3]
[370344728,1751971844822,-460.0,0.00027671,3]
[370344730,1751971844832,-460.0,0.00027671,3]
[370344732,1751971844841,-460.0,0.00027671,3]
[370344734,1751971844850,-460.0,0.00027671,3]
[370344736,1751971844859,-460.0,0.00027671,3]
[370344738,1751971844869,-460.0,0.00027671,3]
[370344740,1751971844878,-460.0,0.00027671,3]
[370344742,1751971844887,-460.0,0.00027671,3]
[370344744,1751971844896,-460.0,0.00027671,3]
[370344746,1751971844905,-460.0,0.00027671,3]
[370344748,1751971844914,-460.0,0.00027671,3]
[370344750,1751971844923,-517.22,0.00027671,3]
[370344752,1751971844933,-460.0,0.00027671,3]
[370344754,1751971844942,-460.0,0.00027671,3]
[370344756,1751971844951,-460.0,0.00027671,3]
[370344758,1751971844960,-460.0,0.00027671,3]
[370344760,1751971844969,-460.0,0.00027671,3]
[370344762,1751971844979,-460.0,0.00027671,3]
[370344764,1751971844988,-460.0,0.00027671,3]
[370344766,1751971844998,-491.9579352,0.00027671,3]
[370344768,1751971845008,-460.0,0.00027671,3]
[370344770,1751971845018,-460.0,0.00027671,3]
[370344772,1751971845027,-460.0,0.00027671,3]
[370344774,1751971845038,-460.0,0.00027671,3]
[370344776,1751971845048,-460.0,0.00027671,3]
[370344778,1751971845057,-460.0,0.00027671,3]
[370344780,1751971845071,-667.6,0.00027671,3]
[370344782,1751971845080,-460.0,0.00027671,3]
[370344783,1751971845091,-460.0,0.00027671,3]
[370344784,1751971845101,-460.0,0.00027671,3]
[370344785,1751971845111,-460.0,0.00027671,3]
[370344786,1751971845121,-460.0,0.00027671,3]
[370344787,1751971845131,-460.0,0.00027671,3]
[370344788,1751971845141,-1225.13,0.00027671,3]
[370344789,1751971845152,-460.0,0.00027671,3]
[370344790,1751971845162,-460.0,0.00027671,3]
[370344791,1751971845172,-460.0,0.00027671,3]
[370344792,1751971845182,-460.0,0.00027671,3]
[370344793,1751971845193,-1509.84,0.00027671,3]
[370344794,1751971845203,-460.0,0.00027671,3]
[370344795,1751971845213,-460.0,0.00027671,3]
[370344796,1751971845223,-460.0,0.00027671,3]
[370344797,1751971845233,-460.0,0.00027671,3]
[370344799,1751971845243,-460.0,0.00027671,3]
[370344801,1751971845253,-460.0,0.00027671,3]
[370344803,1751971845263,-350.10714461,0.00027671,3]
[370344807,1751971845273,-460.0,0.00027671,3]
[370344809,1751971845283,-460.0,0.00027671,3]
[370344811,1751971845293,-633.11,0.00027671,3]
[370344814,1751971845302,-612.7,0.00027671,3]
[370344816,1751971845312,-6852.19,0.00027671,3]
[370344818,1751971845321,-460.0,0.00027671,3]
[370344820,1751971845330,-460.0,0.00027671,3]
[370344821,1751971845339,-460.0,0.00027671,3]
[370344822,1751971845349,-460.0,0.00027671,3]
[370344824,1751971845358,-460.0,0.00027671,3]
[370344826,1751971845367,-460.0,0.00027671,3]
[370344828,1751971845376,-460.0,0.00027671,3]
[370344830,1751971845385,-460.0,0.00027671,3]
[370344832,1751971845394,-253.13,0.00027671,3]
[370344834,1751971845404,-317.32372088,0.00027671,3]
[370344836,1751971845413,-504.59,0.00027671,3]
[370344838,1751971845423,-460.0,0.00027671,3]
[370344840,1751971845432,-460.0,0.00027671,3]
[370344842,1751971845441,-460.0,0.00027671,3]
[370344844,1751971845450,-1356.88,0.00027671,3]
[370344846,1751971845459,-460.0,0.00027671,3]
[370344848,1751971845469,-460.0,0.00027671,3]
[370344850,1751971845478,-2281.61,0.00027671,3]
[370344852,1751971845487,-1020.67,0.00027671,3]
[370344854,1751971845496,-471.62,0.00027671,3]
[370344857,1751971845506,-460.0,0.00027671,3]
[370344859,1751971845516,-460.0,0.00027671,3]
[370344862,1751971845525,-1050.99,0.00027671,3]
[370344865,1751971845534,-501.22,0.00027671,3]
[370344868,1751971845544,-460.0,0.00027671,3]
[370344871,1751971845553,-460.0,0.00027671,3]
[370344874,1751971845562,-460.0,0.00027671,3]
[370344877,1751971845571,-460.0,0.00027671,3]
[370344880,1751971845582,-3034.18,0.00027671,3]
[370344883,1751971845592,-460.0,0.00027671,3]
[370344886,1751971845601,-460.0,0.00027671,3]
[370344889,1751971845610,-460.0,0.00027671,3]
[370344892,1751971845619,-460.0,0.00027671,3]
[370344895,1751971845629,-460.0,0.00027671,3]
[370344898,1751971845638,-460.0,0.00027671,3]
[370344901,1751971845647,-460.0,0.00027671,3]
[370344904,1751971845657,-460.0,0.00027671,3]
[370344907,1751971845666,-460.0,0.00027671,3]
[370344910,1751971845676,-1335.86,0.00027671,3]
[370344913,1751971845686,-556.06,0.00027671,3]
[370344916,1751971845696,-599.17,0.00027671,3]
[370344918,1751971845706,-460.0,0.00027671,3]
[370344920,1751971845716,-460.0,0.00027671,3]
[370344922,1751971845725,-460.0,0.00027671,3]
[370344924,1751971845735,-460.0,0.00027671,3]
[370344926,1751971845744,-873.84,0.00027671,3]
[370344928,1751971845753,-460.0,0.00027671,3]
[370344930,1751971845762,-460.0,0.00027671,3]
[370344932,1751971845771,-460.0,0.00027671,3]
[370344934,1751971845780,-460.0,0.00027671,3]
[370344936,1751971845790,-460.0,0.00027671,3]
[370344938,1751971845799,-460.0,0.00027671,3]
[370344940,1751971845809,-2166.64,0.00027671,3]
[370344942,1751971845818,-460.0,0.00027671,3]
[370344944,1751971845827,-741.82,0.00027671,3]
[370344946,1751971845837,-460.0,0.00027671,3]
[370344948,1751971845846,-502.77,0.00027671,3]
[370344950,1751971845855,-3213.61,0.00027671,3]
[370344952,1751971845865,-870.38,0.00027671,3]
[370344954,1751971845874,-524.39,0.00027671,3]
[370344956,1751971845883,-460.0,0.00027671,3]
[370344958,1751971845892,-460.0,0.00027671,3]
[370344960,1751971845902,-460.0,0.00027671,3]
[370344962,1751971845911,-1047.01,0.00027671,3]
[370344964,1751971845921,-460.0,0.00027671,3]
[370344966,1751971845929,-460.0,0.00027671,3]
[370344968,1751971845938,-527.48,0.00027671,3]
[370344970,1751971845949,-460.0,0.00027671,3]
[370344972,1751971845959,-460.0,0.00027671,3]
[370344974,1751971845968,-626.99,0.00027671,3]
[370344976,1751971845978,-460.0,0.00027671,3]
[370344978,1751971845988,-460.0,0.00027671,3]
[370344980,1751971845997,-3898.8,0.00027671,3]
[370344982,1751971846008,-770.57,0.00027671,3]
[370344984,1751971846018,-460.0,0.00027671,3]
[370344986,1751971846028,-460.0,0.00027671,3]
[370344989,1751971846042,-625.36,0.00027671,3]
[370344991,1751971846052,-460.0,0.00027671,3]
[370344993,1751971846061,-1142.32,0.00027671,3]
[370344995,1751971846070,-460.0,0.00027671,3]
[370344997,1751971846080,-1824.85,0.00027671,3]
[370344998,1751971846091,-460.0,0.00027671,3]
[370345000,1751971846100,-871.7,0.00027671,3]
[370345002,1751971846110,-460.0,0.00027671,3]
[370345005,1751971846122,-460.0,0.00027671,3]
[370345007,1751971846133,-1281.38,0.00027671,3]
[370345009,1751971846144,-460.0,0.00027671,3]
[370345011,1751971846154,-460.0,0.00027671,3]
[370345013,1751971846163,-631.72,0.00027671,3]
[370345015,1751971846173,-460.0,0.00027671,3]
[370345017,1751971846182,-460.0,0.00027671,3]
[370345018,1751971846192,-460.0,0.00027671,3]
[370345019,1751971846201,-460.0,0.00027671,3]
[370345020,1751971846210,-1584.72,0.00027671,3]
[370345021,1751971846219,-2260.19,0.00027671,3]
[370345022,1751971846228,-985.82,0.00027671,3]
[370345023,1751971846237,-198.18731291,0.00027671,3]
[370345024,1751971846246,-151.0,0.00027671,7]
[370345025,1751971846256,-460.0,0.00027671,3]
[370345026,1751971846265,-460.0,0.00027671,3]
[370345027,1751971846274,-531.09,0.00027671,3]
[370345029,1751971846283,-460.0,0.00027671,3]
[370345031,1751971846293,-460.0,0.00027671,3]
[370345033,1751971846302,-460.0,0.00027671,3]
[370345035,1751971846312,-460.0,0.00027671,3]
[370345037,1751971846321,-639.73,0.00027671,3]
[370345064,1751971846541,-779.96,0.00027671,3]
[370345067,1751971846575,-460.0,0.00027671,3]
[370345069,1751971846585,-460.0,0.00027671,3]
[370345071,1751971846594,-460.0,0.00027671,3]
[370345073,1751971846603,-460.0,0.00027671,3]
[370345075,1751971846612,-460.0,0.00027671,3]
[370345077,1751971846622,-460.0,0.00027671,3]
[370345079,1751971846631,-460.0,0.00027671,3]
[370345081,1751971846640,-460.0,0.00027671,3]
[370345083,1751971846649,-460.0,0.00027671,3]
[370345085,1751971846658,-1271.65,0.00027671,3]
[370345087,1751971846668,-574.49,0.00027671,3]
[370345089,1751971846678,-971.99,0.00027671,3]
[370345091,1751971846687,-2005.0,0.00027671,3]
[370345093,1751971846697,-460.0,0.00027671,3]
[370345095,1751971846706,-6473.36,0.00027671,3]
[370345097,1751971846715,-460.0,0.00027671,3]
[370345099,1751971846724,-460.0,0.00027671,3]
[370345101,1751971846733,-460.0,0.00027671,3]
[370345103,1751971846743,-460.0,0.00027671,3]
[370345105,1751971846751,-460.0,0.00027671,3]
[370345107,1751971846760,-460.0,0.00027671,3]
[370345109,1751971846770,-460.0,0.00027671,3]
[370345111,1751971846779,-460.0,0.00027671,3]
[370345113,1751971846788,-460.0,0.00027671,3]
[370345115,1751971846797,-460.0,0.00027671,3]
[370345117,1751971846806,-460.0,0.00027671,3]
[370345119,1751971846815,-460.0,0.00027671,3]
[370345121,1751971846824,-460.0,0.00027671,3]
[370345123,1751971846834,-460.0,0.00027671,3]
[370345125,1751971846844,-460.0,0.00027671,3]
[370345127,1751971846853,-460.0,0.00027671,3]
[370345129,1751971846862,-460.0,0.00027671,3]
[370345131,1751971846871,-460.0,0.00027671,3]
[370345133,1751971846880,-1034.06,0.00027671,3]
[370345135,1751971846889,-460.0,0.00027671,3]
[370345137,1751971846899,-460.0,0.00027671,3]
[370345139,1751971846908,-460.0,0.00027671,3]
[370345141,1751971846918,-460.0,0.00027671,3]
[370345143,1751971846930,-740.43,0.00027671,3]
[370345145,1751971846938,-460.0,0.00027671,3]
[370345147,1751971846947,-857.09,0.00027671,3]
[370345149,1751971846956,-508.72,0.00027671,3]
[370345151,1751971846966,-2856.99,0.00027671,3]
[370345153,1751971846975,-477.61983016,0.00027671,3]
[370345155,1751971846984,-460.0,0.00027671,3]
[370345157,1751971846993,-460.0,0.00027671,3]
[370345158,1751971847004,-911.23,0.00027671,3]
[370345160,1751971847013,-460.0,0.00027671,3]
[370345161,1751971847023,-460.0,0.00027671,3]
[370345163,1751971847031,-460.0,0.00027671,3]
[370345165,1751971847044,-460.0,0.00027671,3]
[370345166,1751971847053,-460.0,0.00027671,3]
[370345168,1751971847062,-231.42827033,0.00027671,3]
[370345169,1751971847072,-830.44,0.00027671,3]
[370345171,1751971847082,-460.0,0.00027671,3]
[370345173,1751971847091,-460.0,0.00027671,3]
[370345174,1751971847101,-791.17,0.00027671,3]